Cogmind - Beta 9.3 @@@ ROGUE MODE // 2019.12.27 @ 12:23:28 // Winter2019/RPGLIKE Player: josiah Result: Destroyed by G-67 Veteran with Plasma Rifle Performance ------------- Evolutions (6) 3000 Regions Visited (11) 2200 Robots Destroyed (209) 1045 Value Destroyed (8999) 8999 Prototype IDs (7) 140 Alien Tech Used (0) 0 Bonus (2841) 2841 TOTAL SCORE: 18225 Bonus ------- High Alert Combat Kills 749 Met Warlord at Base 500 MAIN.C Attacked Warlord 500 Warlord Defense Kill 1092 Cogmind --------- Core Integrity 0/850 Matter 290/300 Energy 181/1240 System Corruption 7% Temperature Cool (0) Movement Rolling (120) Ox2 Location -4/Factory Parts ------- > --- POWER (4) -------- Fission Core Fission Core Reinforced Fission Core Reinforced Fission Core > --- PROPULSION (4) --- Armored Huge Wheel Armored Huge Wheel > --- UTILITY (11) ----- Advanced Cooling System Advanced Cooling System Advanced Cooling System Compact Battery Improved Sensor Array Advanced Signal Interpreter Improved Heavy Armor Plating Medium Reactive Plating Improved Force Field Advanced Dynamic Insulation System > --- WEAPON (5) ------- Force Rifle Wave Gun Heavy Beamcaster Cooled Plasma Rifle Cooled Plasma Rifle > --- INVENTORY (5) ---- Armored Huge Wheel Variable Charge Gun Molecular Deconstructor Peak State ------------ > --- POWER ------------ Fission Core Fission Core Reinforced Fission Core Reinforced Fission Core > --- PROPULSION ------- Armored Huge Wheel Armored Huge Wheel > --- UTILITY ---------- Advanced Cooling System Advanced Cooling System Advanced Cooling System Compact Battery Improved Sensor Array Advanced Signal Interpreter Improved Heavy Armor Plating Medium Reactive Plating Improved Force Field Advanced Dynamic Insulation System > --- WEAPON ----------- Plasma Rifle Wave Gun Heavy Beamcaster Cooled Plasma Rifle Cooled Plasma Rifle > --- INVENTORY -------- Armored Huge Wheel Variable Charge Gun Molecular Deconstructor [Rating: 127] Favorites ----------- Power Fission Core Engine Improved Ion Engine Power Core Fission Core Reactor Cold Fusion Reactor Propulsion Armored Huge Wheel Treads Light Treads Wheel Armored Huge Wheel Utility Advanced Cooling System Device Advanced Cooling System Storage Compact Battery Processor Advanced Signal Interpreter Protection Improved Medium Armor Plating Weapon Cooled Plasma Rifle Energy Gun Cooled Plasma Rifle Ballistic Gun Light Assault Rifle Ballistic Cannon Light Cannon Build | -11 -10 -9 -8 -7 -6 -5 -5 -5 -5 -4 -4 ------- Run | Scr Mat Mat Mat Fac Fac Fac Upp Upp War Pro Fac Slots Evolved 20 | 4 . 4 4 1 3 1 . . . 2 1 Power 3 | . . 1 . . 2 . . . . . . Propulsion 3 | 1 . . 2 . . . . . . . . Utility 10 | 2 . 2 2 1 . 1 . . . 1 1 Weapon 4 | 1 . 1 . . 1 . . . . 1 . Parts Attached 122 | 5 5 17 26 7 27 19 1 1 4 3 7 Power 28 | 1 . 3 3 2 12 5 . . 2 . . Engine 10 | 1 . 3 2 2 2 . . . . . . Core 17 | . . . 1 . 9 5 . . 2 . . Reactor 1 | . . . . . 1 . . . . . . Propulsion 11 | 2 . . 9 . . . . . . . . Treads 9 | 2 . . 7 . . . . . . . . Leg . | . . . . . . . . . . . . Wheel 2 | . . . 2 . . . . . . . . Hover . | . . . . . . . . . . . . Flight . | . . . . . . . . . . . . Utility 51 | . 4 7 10 5 7 8 . 1 2 1 6 Device 28 | . 1 3 8 2 1 5 . . 2 . 6 Storage 4 | . 3 . . . 1 . . . . . . Processor 2 | . . . 1 . 1 . . . . . . Hackware . | . . . . . . . . . . . . Protection 17 | . . 4 1 3 4 3 . 1 . 1 . Artifact . | . . . . . . . . . . . . Weapon 32 | 2 1 7 4 . 8 6 1 . . 2 1 Energy Gun 26 | . . 6 4 . 7 5 1 . . 2 1 Energy Cannon . | . . . . . . . . . . . . Ballistic Gun 5 | 2 . 1 . . 1 1 . . . . . Ballistic Cannon 1 | . 1 . . . . . . . . . . Launcher . | . . . . . . . . . . . . Special Weapon . | . . . . . . . . . . . . Impact Weapon . | . . . . . . . . . . . . Slashing Weapon . | . . . . . . . . . . . . Piercing Weapon . | . . . . . . . . . . . . Special Melee Weapon . | . . . . . . . . . . . . Unidentified Prototypes 7 | . . 2 1 . 1 2 . . . . 1 Parts Lost 1 | . . . . . . . . . 1 . . Power . | . . . . . . . . . . . . Propulsion . | . . . . . . . . . . . . Utility . | . . . . . . . . . . . . Weapon 1 | . . . . . . . . . 1 . . Highest Loss Streak 1 | . . . . . . . . . 1 . . Average Slot Usage (%) 88 | . 87 97 97 87 85 89 90 85 81 85 86 Engine 2 | . 12 10 10 5 2 . . . . . . Core 12 | . . . 2 4 8 19 19 19 19 17 16 Treads 3 | . 25 18 18 . . . . . . . . Wheel 7 | . . . . 11 10 9 9 9 9 8 8 Device 21 | . 3 20 26 23 21 20 23 23 23 21 22 Storage 5 | . 20 14 6 5 5 4 4 4 4 4 4 Processor 3 | . . . 5 5 5 4 4 4 4 4 4 Protection 7 | . . 6 6 10 10 9 9 4 4 8 8 Energy Gun 17 | . . 22 19 17 15 17 19 19 15 18 20 Naked Turns . | . . . . . . . . . . . . Heaviest Build 146 | 5 16 33 36 42 80 88 88 89 106 135 146 Greatest Support 85 | 40 40 40 85 56 56 56 56 56 56 56 56 Greatest Overweight (x) 2 | . . . 1 . 1 1 1 1 1 2 2 Average Overweight (x) . | . . . . . . 1 1 1 1 1 2 Largest Inventory Capacity 5 | 1 1 1 2 2 2 3 5 5 5 5 5 Average Capacity 3 | . 1 1 1 2 2 2 3 5 5 5 5 Most Carried 5 | 1 1 1 2 2 2 3 5 5 5 5 5 Average Carried 2 | . 1 . 1 2 2 2 3 4 5 4 4 Final Capacity 5 | 1 1 1 2 2 2 3 5 5 5 5 5 Final Carried 5 | 1 1 1 2 2 2 3 5 5 5 4 5 Class Distribution -------------------- 66% | Generator-Tank 12% | Scavenger-Tank 12% | Tank 3% | Mutant Dominant Class ---------------- Mutant | -10/Materials Scavenger-Tank | -9/Materials Scavenger-Tank | -8/Materials Tank | -7/Factory Tank | -6/Factory Generator-Tank | -5/Factory Generator-Tank | -5/Upper Caves Generator-Tank | -5/Upper Caves Generator-Tank | -5/Warlord Generator-Tank | -4/Proximity Caves Generator-Tank | -4/Factory Resources | -11 -10 -9 -8 -7 -6 -5 -5 -5 -5 -4 -4 ----------- Run | Scr Mat Mat Mat Fac Fac Fac Upp Upp War Pro Fac Matter Collected 1901 | 250 106 510 260 70 338 202 10 10 40 30 75 Remotely . | . . . . . . . . . . . . Salvage Created 7878 | . 106 1393 894 413 336 663 522 321 657 729 1844 Parts 423 | . 14 75 54 7 31 58 26 20 19 32 87 Haulers Intercepted 4 | . . 2 2 . . . . . . . . Recyclers Shooed 3 | . . . . . 1 . . . . . 2 Parts Field Recycled . | . . . . . . . . . . . . Retrieved Matter . | . . . . . . . . . . . . Parts Self-Destructed 176 | . . . . . . . 26 20 98 32 . Prevented 12 | . . . . . . . . . 12 . . Kills | -11 -10 -9 -8 -7 -6 -5 -5 -5 -5 -4 -4 ------- Run | Scr Mat Mat Mat Fac Fac Fac Upp Upp War Pro Fac Combat Hostiles Destroyed 185 | . 7 27 22 5 17 24 12 11 8 19 33 Guns 154 | . 1 19 22 5 14 22 11 9 6 18 27 Cannons 8 | . 6 2 . . . . . . . . . AOE 5 | . . 4 . . . 1 . . . . . Classes Destroyed 17 | . 3 5 1 . 3 1 . 1 2 1 . Worker 9 | . 1 1 3 . . 1 . . . . 3 Builder 4 | . . 1 . . . 2 . . . . 1 Hauler 4 | . . 2 2 . . . . . . . . Recycler 2 | . . 1 1 . . . . . . . . Operator 3 | . . . . . 1 . . . . . 2 Watcher 2 | . . . . . . 1 . . . . 1 Swarmer 57 | . 3 3 4 . 6 12 4 8 . 9 8 Grunt 58 | . 4 17 12 3 2 4 6 . 3 3 4 Brawler 4 | . . . 1 . . . . . 3 . . Duelist 3 | . . 1 . . . . . . . 1 1 Sentry 26 | . . 6 5 2 2 3 1 1 . . 6 Specialist 1 | . . . . . . . . . . 1 . Hunter 13 | . . . . . 2 3 1 1 . 4 2 Programmer 19 | . . . . . 5 2 . . . 1 11 Behemoth 2 | . . . . . . . . 1 . . 1 Striker 1 | . . . . . . . . . 1 . . Mutant 1 | . . . . . . . . . 1 . . Best Kill Streak 9 | . 7 6 6 2 5 9 4 4 3 7 8 Combat Bots Only 7 | . 6 4 5 2 5 7 4 4 3 7 7 Max Kills in Single Turn 4 | . 1 2 1 1 1 3 2 2 1 2 4 Gunslinging 1 | . . . . . . 1 1 1 . 1 1 Exploded 2 | . . 2 . . . 1 . . . . . Melee . | . . . . . . . . . . . . Uniques/NPCs Destroyed . | . . . . . . . . . . . . Combat | -11 -10 -9 -8 -7 -6 -5 -5 -5 -5 -4 -4 -------- Run | Scr Mat Mat Mat Fac Fac Fac Upp Upp War Pro Fac Damage Taken 7669 | . 281 872 814 357 954 980 386 294 750 448 1533 Core 5977 | . 222 690 641 276 732 763 300 225 586 347 1195 Absorbed by Shields 5150 | . . 127 316 142 686 778 402 308 783 480 1128 Redirected to Core 5375 | . 189 588 549 240 677 679 280 209 542 306 1116 Core Remaining (%) 87 | 100 80 89 100 54 87 . . . . 100 . Volleys Fired 431 | . 28 66 63 20 47 38 20 15 34 33 67 Largest 5 | . 2 3 3 3 3 4 4 4 3 5 5 Hottest 297 | . 55 157 186 183 211 244 153 297 225 285 290 Shots Fired 1483 | . 56 190 187 60 131 152 80 60 99 139 329 Gun 1437 | . 28 172 187 60 131 152 80 60 99 139 329 Cannon 46 | . 28 18 . . . . . . . . . Launcher . | . . . . . . . . . . . . Special . | . . . . . . . . . . . . Kinetic 113 | . 56 54 . . . 3 . . . . . Thermal 1310 | . . 76 187 60 131 149 80 60 99 139 329 Explosive . | . . . . . . . . . . . . Electromagnetic 60 | . . 60 . . . . . . . . . Robot Hit Streak 36 | . 7 17 21 13 21 20 15 9 25 22 36 Robot Miss Streak 5 | . 2 2 5 2 3 5 3 3 1 3 5 Penetration Max . | . . . . . . . . . . . . Secondary Targets 47 | . . 3 5 . 2 6 6 3 . 12 10 Max Gunslinging Chain 2 | . . 1 1 . 1 1 2 1 . 2 2 Shots Hit Robots 1083 | . 43 149 144 44 98 94 56 32 81 96 246 Core Hits 412 | . 13 55 68 13 30 42 22 12 35 33 89 Critical Hits 3 | . 1 1 . . . . . . . . 1 Critical Kills . | . . . . . . . . . . . . Critical Parts Destroyed 3 | . 1 1 . . . . . . . . 1 Melee Attacks . | . . . . . . . . . . . . Impact . | . . . . . . . . . . . . Slashing . | . . . . . . . . . . . . Piercing . | . . . . . . . . . . . . Sneak Attacks . | . . . . . . . . . . . . Combat Hostiles . | . . . . . . . . . . . . Follow-up Attacks . | . . . . . . . . . . . . Damage Inflicted 23056 | . 500 2598 2350 820 2184 2627 1202 870 1918 1849 6138 Guns 21352 | . 175 2009 2350 820 2184 2134 1202 870 1918 1849 5841 Cannons 533 | . 325 208 . . . . . . . . . Explosions 1171 | . . 381 . . . 493 . . . . 297 Melee . | . . . . . . . . . . . . Ramming . | . . . . . . . . . . . . Kinetic 996 | . 500 428 . . . 68 . . . . . Thermal 20826 | . . 1227 2350 820 2184 2559 1202 870 1918 1849 5847 Explosive . | . . . . . . . . . . . . Electromagnetic 1234 | . . 943 . . . . . . . . 291 Impact . | . . . . . . . . . . . . Slashing . | . . . . . . . . . . . . Piercing . | . . . . . . . . . . . . Highest Corruption 8 | . . 4 . 1 8 2 2 2 3 . 7 Average Corruption 3 | . . 3 . 1 5 1 2 2 2 . 3 Corruption Purged . | . . . . . . . . . . . . Effects 123 | . . 13 . 4 40 7 20 7 . . 32 Message Errors 25 | . . 3 . 2 6 2 5 2 . . 5 Matter Fused 12 | . . 1 . . 9 . . . . . 2 Heat Flow Errors 17 | . . 1 . . 6 . 5 2 . . 3 Energy Discharges 20 | . . 2 . 1 7 2 3 3 . . 2 Parts Rejected 1 | . . 1 . . . . . . . . . Data Loss (minor) 13 | . . 1 . 1 3 1 5 . . . 2 Misfires 2 | . . . . . 1 . . . . . 1 Targeting Errors 23 | . . 4 . . 5 2 2 . . . 10 Weapon Failures 10 | . . . . . 3 . . . . . 7 Overload Shots 15 | . . . . . . . . 6 9 . . Effects 1 | . . . . . . . . . 1 . . Meltdown 1 | . . . . . . . . . 1 . . Overflow Damage 82 | . . 19 . . . 63 . . . . . Projectiles . | . . . . . . . . . . . . Explosions 82 | . . 19 . . . 63 . . . . . Melee . | . . . . . . . . . . . . Knockbacks 12 | . 8 4 . . . . . . . . . Impact . | . . . . . . . . . . . . Kinetic 10 | . 6 4 . . . . . . . . . Secondary 2 | . 2 . . . . . . . . . . Self-Inflicted Damage 302 | . . 143 . . . 56 . . . . 103 Shots 9 | . . 5 . . . 1 . . . . 3 Rammed . | . . . . . . . . . . . . Targets Rammed . | . . . . . . . . . . . . Kicked . | . . . . . . . . . . . . Crushed . | . . . . . . . . . . . . Highest Temperature 467 | . 46 316 402 94 467 34 168 111 . . 83 Average Temperature 76 | . 15 65 102 26 94 18 98 58 . . 12 Received Heat Transfer 1461 | . 135 288 330 126 87 44 96 22 67 68 198 Effects 9 | . . 2 3 . 4 . . . . . . Shutdowns 4 | . . . 1 . 3 . . . . . . Energy Bleed 1 | . . 1 . . . . . . . . . Interference 2 | . . 1 1 . . . . . . . . Short Circuit 1 | . . . 1 . . . . . . . . Damage (minor) 1 | . . . . . 1 . . . . . . Siege Activations . | . . . . . . . . . . . . Robots Corrupted 1 | . . 1 . . . . . . . . . Combat Hostiles 1 | . . 1 . . . . . . . . . Parts Fried 2 | . . 2 . . . . . . . . . Impact Corruptions . | . . . . . . . . . . . . Robots Melted 17 | . . 1 . . 3 1 1 2 2 1 6 Combat Hostiles 17 | . . 1 . . 3 1 1 2 2 1 6 Parts Melted 124 | . . 4 10 4 23 16 6 4 5 15 37 Heat Transferred 36838 | . . 2311 4784 1517 4098 4201 2279 1557 2439 3356 10296 Parts Sabotaged . | . . . . . . . . . . . . Parts Stolen . | . . . . . . . . . . . . Parts Stripped . | . . . . . . . . . . . . Power Chain Reactions 7 | . . 5 . . . . . . . . 2 Missiles Intercepted . | . . . . . . . . . . . . Alert | -11 -10 -9 -8 -7 -6 -5 -5 -5 -5 -4 -4 ------- Run | Scr Mat Mat Mat Fac Fac Fac Upp Upp War Pro Fac Peak Influence 898 | . 250 699 618 376 235 665 . . . . 898 Average Influence 280 | . 101 433 462 282 130 195 . . . . 356 Maximum Alert Level 3 | . 1 2 2 1 1 2 . . . . 3 Low Security (%) 45 | 100 67 13 . 23 82 70 . . . . 34 Level 1 23 | . 32 23 19 76 17 1 . . . . 26 Level 2 30 | . . 63 80 . . 27 . . . . 30 Level 3 1 | . . . . . . . . . . . 8 Level 4 . | . . . . . . . . . . . . Level 5 . | . . . . . . . . . . . . High Security . | . . . . . . . . . . . . Max Security . | . . . . . . . . . . . . Squads Dispatched 30 | . 5 3 3 . 5 4 . . . . 10 Investigation 3 | . 1 1 . . 1 . . . . . . Extermination 9 | . . . . . 3 1 . . . . 5 Reinforcement 12 | . 4 1 3 . 1 1 . . . . 2 Assault 2 | . . 1 . . . . . . . . 1 Garrison 4 | . . . . . . 2 . . . . 2 Intercept . | . . . . . . . . . . . . Construction Impeded 3 | . . 1 . . . 1 . . . . 1 Haulers Reinforced . | . . . . . . . . . . . . Stealth | -11 -10 -9 -8 -7 -6 -5 -5 -5 -5 -4 -4 --------- Run | Scr Mat Mat Mat Fac Fac Fac Upp Upp War Pro Fac Distress Signals 15 | . 3 7 1 . . . . . 3 . 1 Communications Jammed 15 | . . . . . . . . . . . 15 Distress Signals 13 | . . . . . . . . . . . 13 Times Spotted 284 | . 15 39 34 8 22 28 17 14 34 19 54 Peak Tracking Total 15 | . 6 6 7 3 4 7 4 5 15 5 11 Tactical Retreats 24 | . 1 4 2 2 2 . 5 3 4 . 1 Traps | -11 -10 -9 -8 -7 -6 -5 -5 -5 -5 -4 -4 ------- Run | Scr Mat Mat Mat Fac Fac Fac Upp Upp War Pro Fac Traps Triggered 14 | . 1 1 1 3 4 2 . . . . 2 Indirectly 2 | . . . . . . . . . . . 2 Trap Hack Attempts . | . . . . . . . . . . . . Triggered . | . . . . . . . . . . . . Disarmed . | . . . . . . . . . . . . Reprogrammed . | . . . . . . . . . . . . Reused . | . . . . . . . . . . . . Traps Extracted . | . . . . . . . . . . . . Installed . | . . . . . . . . . . . . Triggered 15 | . . . . . . . . . 15 . . Machines | -11 -10 -9 -8 -7 -6 -5 -5 -5 -5 -4 -4 ---------- Run | Scr Mat Mat Mat Fac Fac Fac Upp Upp War Pro Fac Machines Disabled 33 | . . 6 . 1 1 7 . . . 1 17 Max in Single Turn 10 | . . 3 . 1 1 2 . . . 1 10 Garrison Access 2 | . . . . . . 1 . . . . 1 Machines Sabotaged . | . . . . . . . . . . . . Garrisons Compromised . | . . . . . . . . . . . . Overloaded Fab Kills . | . . . . . . . . . . . . Fab Network Shutdowns . | . . . . . . . . . . . . Hacking | -11 -10 -9 -8 -7 -6 -5 -5 -5 -5 -4 -4 --------- Run | Scr Mat Mat Mat Fac Fac Fac Upp Upp War Pro Fac Machines Accessed 13 | . . . . . 1 1 1 1 7 1 1 Terminals 1 | . . . . . . . . . . 1 . Fabricators . | . . . . . . . . . . . . Repair Stations . | . . . . . . . . . . . . Recycling Units 1 | . . . . . 1 . . . . . . Scanalyzers . | . . . . . . . . . . . . Garrison Access 2 | . . . . . . 1 . . . . 1 Total Hacks 16 | . . . . . 1 4 1 1 7 1 1 Successful 13 | . . . . . 1 1 1 1 7 1 1 Failed 3 | . . . . . . 3 . . . . . Catastrophic . | . . . . . . . . . . . . Database Lockouts . | . . . . . . . . . . . . Manual 1 | . . . . . . . . . . 1 . Terminals 1 | . . . . . . . . . . 1 . Fabricators . | . . . . . . . . . . . . Repair Stations . | . . . . . . . . . . . . Recycling Units 1 | . . . . . 1 . . . . . . Scanalyzers . | . . . . . . . . . . . . Garrison Access 5 | . . . . . . 4 . . . . 1 Terminal Hacks 10 | . . . . . . . 1 1 7 1 . Record 6 | . . . . . . . . . 5 1 . Open Door 4 | . . . . . . . 1 1 2 . . Fabricator Hacks . | . . . . . . . . . . . . Repair Station Hacks . | . . . . . . . . . . . . Recycling Unit Hacks 1 | . . . . . 1 . . . . . . Retrieve Components 1 | . . . . . 1 . . . . . . Scanalyzer . | . . . . . . . . . . . . Garrison Access Hacks 2 | . . . . . . 1 . . . . 1 Seal Access 2 | . . . . . . 1 . . . . 1 Unauthorized Hacks . | . . . . . . . . . . . . Terminals . | . . . . . . . . . . . . Fabricators . | . . . . . . . . . . . . Repair Stations . | . . . . . . . . . . . . Recycling Units . | . . . . . . . . . . . . Scanalyzers . | . . . . . . . . . . . . Garrison Access . | . . . . . . . . . . . . Data Cores Recovered 2 | . . . . . . . . . . . 2 Used . | . . . . . . . . . . . . Hacking Detections 1 | . . . . . . 1 . . . . . Full Trace Events . | . . . . . . . . . . . . Feedback Events . | . . . . . . . . . . . . Feedback Blocked . | . . . . . . . . . . . . Robot Schematics Acquired . | . . . . . . . . . . . . Robots Built . | . . . . . . . . . . . . Matter . | . . . . . . . . . . . . Time . | . . . . . . . . . . . . Total Robot Build Rating . | . . . . . . . . . . . . Part Schematics Acquired . | . . . . . . . . . . . . Parts Built . | . . . . . . . . . . . . Matter . | . . . . . . . . . . . . Time . | . . . . . . . . . . . . Total Part Build Rating . | . . . . . . . . . . . . Parts Repaired . | . . . . . . . . . . . . Time . | . . . . . . . . . . . . Parts Recycled . | . . . . . . . . . . . . Recycled Matter . | . . . . . . . . . . . . Retrieved Matter . | . . . . . . . . . . . . Retrieved Components 1 | . . . . . 1 . . . . . . Parts Scanalyzed . | . . . . . . . . . . . . Part Schematics Acquired . | . . . . . . . . . . . . Parts Damaged . | . . . . . . . . . . . . Bothacking | -11 -10 -9 -8 -7 -6 -5 -5 -5 -5 -4 -4 ------------ Run | Scr Mat Mat Mat Fac Fac Fac Upp Upp War Pro Fac Used RIF Installer . | . . . . . . . . . . . . Robots Hacked . | . . . . . . . . . . . . Non-combat . | . . . . . . . . . . . . Combat . | . . . . . . . . . . . . Robot Hacks Applied . | . . . . . . . . . . . . Relay Couplers Released 1 | . . . . . . 1 . . . . . Machine Destruction 1 | . . . . . . 1 . . . . . Robots Rewired . | . . . . . . . . . . . . Allies Hacked . | . . . . . . . . . . . . Hacks Repelled . | . . . . . . . . . . . . Allies | -11 -10 -9 -8 -7 -6 -5 -5 -5 -5 -4 -4 -------- Run | Scr Mat Mat Mat Fac Fac Fac Upp Upp War Pro Fac Total Allies . | . . . . . . . . . . . . Largest Group . | . . . . . . . . . . . . Highest-Rated Group . | . . . . . . . . . . . . Highest-Rated Ally . | . . . . . . . . . . . . Total Orders . | . . . . . . . . . . . . Ally Attacks . | . . . . . . . . . . . . Total Damage . | . . . . . . . . . . . . Kills . | . . . . . . . . . . . . Allies Corrupted . | . . . . . . . . . . . . Allies Melted . | . . . . . . . . . . . . Intel | -11 -10 -9 -8 -7 -6 -5 -5 -5 -5 -4 -4 ------- Run | Scr Mat Mat Mat Fac Fac Fac Upp Upp War Pro Fac Robot Analysis Total . | . . . . . . . . . . . . Derelict Logs Recovered 2 | . . . . . . . . 1 . 1 . Drone Launches . | . . . . . . . . . . . . Drone Recoveries . | . . . . . . . . . . . . Exploration | -11 -10 -9 -8 -7 -6 -5 -5 -5 -5 -4 -4 ------------- Run | Scr Mat Mat Mat Fac Fac Fac Upp Upp War Pro Fac Turns Passed 12228 | 90 369 979 1061 653 1623 1343 1569 793 1068 1279 1401 Spaces Moved 7001 | 54 165 419 457 310 1082 803 1054 630 706 652 669 Core 3 | 3 . . . . . . . . . . . Treads 1037 | 51 165 419 402 . . . . . . . . Legs . | . . . . . . . . . . . . Wheels 5961 | . . . 55 310 1082 803 1054 630 706 652 669 Hover . | . . . . . . . . . . . . Flight . | . . . . . . . . . . . . Fastest Speed 50 | 50 160 160 100 100 100 110 110 110 110 110 120 Average Speed 118 | 153 160 160 150 100 106 110 110 110 110 119 120 Slowest Speed 160 | 160 160 160 160 100 110 110 110 110 110 120 120 Overloaded Moves . | . . . . . . . . . . . . Propulsion Burnouts . | . . . . . . . . . . . . Robots Hopped . | . . . . . . . . . . . . Cave-ins Triggered . | . . . . . . . . . . . . Exploration Rate (%) 44 | 5 39 43 42 12 27 22 94 89 75 69 20 Regions Visited 11 Branch Regions 4 Pre-discovered Areas 1 | . . . . . . . . 1 . . . Known Exits Taken 8 | . . . 1 1 1 1 1 1 1 1 . Unknown Exits Taken 3 | 1 1 1 . . . . . . . . . Scrap Searched 7 | . . . . . . . 4 3 . . . Spaces Dug . | . . . . . . . . . . . . Terrain Destroyed 73 | . . 18 . . . 49 . 1 . . 5 Melee . | . . . . . . . . . . . . Projectile 3 | . . . . . . . . 1 . . 2 AOE 70 | . . 18 . . . 49 . . . . 3 Actions | -11 -10 -9 -8 -7 -6 -5 -5 -5 -5 -4 -4 --------- Run | Scr Mat Mat Mat Fac Fac Fac Upp Upp War Pro Fac Total 9995 | 59 218 592 695 607 1447 1174 1416 693 923 1072 1099 Wait 2014 | . 14 42 83 261 215 244 316 21 166 337 315 Move 6990 | 53 164 418 456 309 1081 802 1053 629 705 651 669 Hop . | . . . . . . . . . . . . Pick Up 16 | 1 . 3 3 . . 1 1 2 . 3 2 Fast Attach 82 | 5 5 11 14 7 20 12 1 . 2 . 5 Attach 8 | . . 1 2 . . . . 1 . 3 1 Detach . | . . . . . . . . . . . . Swap 32 | . . 5 10 . 7 7 . . 2 . 1 Drop 90 | . 2 13 24 6 17 13 1 2 4 2 6 Fire 431 | . 28 66 63 20 47 38 20 15 34 33 67 Melee . | . . . . . . . . . . . . Ram . | . . . . . . . . . . . . Kick . | . . . . . . . . . . . . Crush . | . . . . . . . . . . . . Escape Stasis 4 | . . . . 4 . . . . . . . Rewire 1 | . . . . . . . 1 . . . . Trap . | . . . . . . . . . . . . Miscellaneous 327 | . 5 33 40 . 60 57 23 23 10 43 33 Route ------- -11/Scrapyard -10/Materials -9/Materials -8/Materials (discovered 2 exits: *Fac / *Sto) -7/Factory -6/Factory -5/Factory -5/Upper Caves -5/Upper Caves (discovered 2 exits: *Fac / *War) -5/Warlord -4/Proximity Caves -4/Factory History --------- Turn | Location | Event 2 | -11/Scrapyard | Discovered new exit (range 16) 9 | -11/Scrapyard | Upgraded with Propulsion slot (x1) 9 | -11/Scrapyard | Upgraded with Utility slot (x2) 9 | -11/Scrapyard | Upgraded with Weapon slot (x1) 91 | -11/Scrapyard | Entered Materials 311 | -10/Materials | Build established: Mutant 434 | -10/Materials | Discovered new exit (range 15) 460 | -10/Materials | Entered another Materials area 462 | -9/Materials | Reached level 2 464 | -9/Materials | Upgraded with Utility slot (x1) 464 | -9/Materials | Upgraded with Weapon slot (x1) 661 | -9/Materials | Reached level 3 687 | -9/Materials | Upgraded with Utility slot (x1) 809 | -9/Materials | Core integrity fell below 50% 942 | -9/Materials | Reached level 4 1260 | -9/Materials | First assault squad dispatched 1279 | -9/Materials | Upgraded with Power slot (x1) 1285 | -9/Materials | Reached level 5 1396 | -9/Materials | Discovered new exit (range 10) 1439 | -9/Materials | Entered another Materials area 1441 | -8/Materials | Reached level 6 1455 | -8/Materials | Upgraded with Utility slot (x2) 1679 | -8/Materials | Build established: Scavenger-Tank 1708 | -8/Materials | Core integrity fell below 50% 1882 | -8/Materials | Reached level 7 1903 | -8/Materials | Upgraded with Propulsion slot (x2) 2154 | -8/Materials | Discovered new exit (range 14) 2254 | -8/Materials | Identified exit to Storage 2418 | -8/Materials | Reached level 8 2480 | -8/Materials | Discovered new exit (range 3) 2481 | -8/Materials | Identified exit to Factory 2500 | -8/Materials | Entered Factory 2502 | -7/Factory | Reached level 9 2507 | -7/Factory | Upgraded with Utility slot (x1) 2931 | -7/Factory | Build established: Tank 3137 | -7/Factory | Discovered new exit (range 7) 3152 | -7/Factory | Identified exit to Factory 3153 | -7/Factory | Entered another Factory area 3155 | -6/Factory | Reached level 10 3186 | -6/Factory | Core integrity fell below 50% 3812 | -6/Factory | Reached level 11 3835 | -6/Factory | Upgraded with Power slot (x2) 4382 | -6/Factory | Upgraded with Weapon slot (x1) 4421 | -6/Factory | Build established: Generator-Tank 4646 | -6/Factory | Discovered new exit (range 11) 4706 | -6/Factory | Reached level 12 4774 | -6/Factory | Identified exit to Factory 4776 | -6/Factory | Entered another Factory area 4778 | -5/Factory | Reached level 13 5699 | -5/Factory | Destroyed 7 combat bots 5735 | -5/Factory | Reached level 14 5738 | -5/Factory | Upgraded with Utility slot (x1) 5738 | -5/Factory | Garrison activated, responded to threat 5775 | -5/Factory | Destroyed 7 combat bots 5852 | -5/Factory | Reached level 15 6098 | -5/Factory | Discovered new exit (range 9) 6112 | -5/Factory | Identified exit to Upper Caves 6119 | -5/Factory | Entered Upper Caves 6138 | -5/Upper Caves | Attracted the attention of an 0b10 checkpoint 6640 | -5/Upper Caves | Reached level 16 7658 | -5/Upper Caves | Discovered new exit (range 3) 7661 | -5/Upper Caves | Identified exit to Upper Caves 7688 | -5/Upper Caves | Entered another Upper Caves area 7690 | -5/Upper Caves | Reached level 17 7703 | -5/Upper Caves | Attracted the attention of an 0b10 checkpoint 7796 | -5/Upper Caves | Discovered new exit (range 4) 7799 | -5/Upper Caves | Identified exit to Factory 7853 | -5/Upper Caves | Spotted B-75 Beast 8008 | -5/Upper Caves | Destroyed B-75 Beast 8350 | -5/Upper Caves | Discovered new exit (range 9) 8360 | -5/Upper Caves | Identified exit to Warlord 8481 | -5/Upper Caves | Entered Warlord 8483 | -5/Warlord | Reached level 18 8521 | -5/Warlord | System corruption cleaned by Quarantine Array 8638 | -5/Warlord | Met Warlord 8663 | -5/Warlord | Warlord's base attacked by MAIN.C 9013 | -5/Warlord | Warlord forces counterattacked 9133 | -5/Warlord | Spotted Striker 9142 | -5/Warlord | Destroyed Striker 9145 | -5/Warlord | Spotted Executioner 9206 | -5/Warlord | Opened side exit 9360 | -5/Warlord | Reached level 19 9535 | -5/Warlord | Spotted Striker 9543 | -5/Warlord | Discovered new exit (range 6) 9544 | -5/Warlord | Spotted Executioner 9547 | -5/Warlord | Identified exit to Proximity Caves 9549 | -5/Warlord | Entered Proximity Caves 9551 | -4/Proximity Caves | Reached level 20 9558 | -4/Proximity Caves | Upgraded with Utility slot (x1) 9852 | -4/Proximity Caves | Received a Behemoth hack from an annoying Tinkerer 10223 | -4/Proximity Caves | Acquired the password to a Derelict Tinkerer's latest research 10230 | -4/Proximity Caves | Found Prototype Special Weapon 10267 | -4/Proximity Caves | Learned 4 Research zone layouts 10288 | -4/Proximity Caves | Caught by Unaware searching for contraband prototypes 10292 | -4/Proximity Caves | Core integrity fell below 50% 10305 | -4/Proximity Caves | Caught by Unaware searching for contraband prototypes 10351 | -4/Proximity Caves | Destroyed 7 combat bots 10577 | -4/Proximity Caves | Reached level 21 10580 | -4/Proximity Caves | Upgraded with Weapon slot (x1) 10807 | -4/Proximity Caves | Discovered exit to Factory (range 7) 10828 | -4/Proximity Caves | Entered Factory 10830 | -4/Factory | Reached level 22 11017 | -4/Factory | Spotted B-86 Titan 11038 | -4/Factory | Destroyed B-86 Titan 11257 | -4/Factory | Reached level 23 11583 | -4/Factory | Garrison activated, responded to threat 11680 | -4/Factory | Reached level 24 11703 | -4/Factory | Upgraded with Utility slot (x1) 12078 | -4/Factory | First assault squad dispatched 12206 | -4/Factory | Core integrity fell below 50% 12219 | -4/Factory | Core integrity fell below 20% 12229 | -4/Factory | Destroyed by G-67 Veteran with Plasma Rifle Last Messages --------------- 12212_ S-27 Virus destroyed. 12212_ Switching to secondary target: G-67 Veteran. 12213_ K-01 Serf collects debris. 12217_ UV2EJXMK |PBOT&RAI#YY90 12219_ The unstable cave ceiling collapses. 12219_ K-01 Serf collects debris. 12221_ S-27 Virus destroyed. 12221_ Switching to secondary target: G-67 Veteran. 12221_ Destroyed Electrolaser. 12224_ K-01 Serf collects debris. 12225_ S-27 Virus destroyed. 12225_ Switching to secondary target: G-67 Veteran. 12225_ G-67 Veteran destroyed. 12227_ K-01 Serf collects debris. 12228_ System corrupted: Force Rifle targeting data glitched. 12229_ C-30 ARC bursts open, deploying its payload. 12229_ G-73 Enforcer unfolds itself. 12229_ B-60 Warrior unfolds itself. 12229_ G-67 Veteran unfolds itself. 12229_ E-15 Imp unfolds itself. Map ----- +----------------------------------------------------+ | ?????????????????????????????????????????????????? | | ?????????????????????????????????????????????????? | | ?????????????????????????????????????????????????? | | ?????????????????????????????????????????????????? | | ?????????????????????????????????????????????????? | | ?????????????????????????????????????????????????? | | ?????????????????????????????????????????????????? | | ?????????????????????????????????????????????????? | | ?????????????????????????????????????????????????? | | ?????????????????????????????????????????????????? | | ?????????????????????????????????????????????????? | | ?????????????????????????????????????????????????? | | ?????????????????????????????????????????????????? | | ?????????????????????????????????????????????????? | | ????????????????????####?#???????????????????????? | | ????????????????????# # ###????????????????????? | | ???????????????????## ###??????????????????? | | ??????????????????## #??????????????????? | | ??????????????????# "" #??????????????????? | | ??????????????????# " #??????????????????? | | ??????????????????# " #??????????????????? | | ?????????????????## ##?????????????????? | | ?????????????????# [ #?????????????????? | | ??????????????????# =*% ##?????????????????? | | ??????????????????# =%[=! [ #?????????????????? | | ????????????? ??????#=%=%@%= #?????????????????? | | ??????????? ####%==#g%sk ########???????????? | | ??????????? *[ %[=[! #???????????? | | ??????????? [ ############# | | ??????????? # | | ??????????? # """" | | ??????????? # """" | | ????????????#+############+#####e # """" !% | | ?????????????????????# #g gg # """" = | | ?????????????????????# """ ""# % #!"""" | | ?????????????????????# """ ""# o+%"""" | | ?????????????????????# """ [ %G# #*""" "" | | ?????????????????????# ""# # ! """ | | ?????????????????????# ""# #! ! = R" | | ?????????????????????# = # #!! ! """ | | ?????????????????????###########! #!!! | | ????????????????????????# =%= ############# | | ????????????????????????# % ##??????????? | | ????????????????????????# #???????????? | | ????????????????????????# #???????????? | | ???????????????########## #???????????? | | ???????????????#^ ^ # #???????????? | | ???????????????# """" # ############# | | ???????????????# ^""""^ #% | | ???????????????? """" %/* | +----------------------------------------------------+ Best States ------------- Heat Dissipation 178 Coolant Potential 80 Energy Generation 64 Energy Capacity 1240 Matter Stores 450 Matter Capacity 450 Sight Range 16 Robot Scan Range 19 Terrain Scan Density 10 Jamming Range 16 Base Temperature (-) 100 EM Shielding 4 Armor Coverage 825 Resistance: KI 30 Resistance: TH 15 Resistance: EX 20 Thermal Conversion 30 Phase Shifting 5 Evasion (%) 45 Recoil Reduction 4 Item Schematics ----------------- None Robot Schematics ------------------ None Fabricated ------------ Nothing Alien Tech Used ----------------- None Achievements -------------- None Challenges ------------ None RPGLIKE | -11 -10 -9 -8 -7 -6 -5 -5 -5 -5 -4 -4 --------- Run | Scr Mat Mat Mat Fac Fac Fac Upp Upp War Pro Fac Levels Raised 23 | . . 4 3 1 3 3 1 1 2 2 3 XP Earned 38832 | 3000 850 5381 4351 2225 3825 5006 1864 1800 2346 3100 5084 XP Spent 37500 | 2550 . 3800 6100 2525 4400 3875 2250 1350 1500 4550 4600 Upgrades 57 | 5 . 4 5 4 13 8 2 6 3 3 4 Power Slot 3 | . . 1 . . 2 . . . . . . Propulsion Slot 3 | 1 . . 2 . . . . . . . . Utility Slot 10 | 2 . 2 2 1 . 1 . . . 1 1 Weapon Slot 4 | 1 . 1 . . 1 . . . . 1 . Core Integrity 5 | . . . . . . 5 . . . . . Heat Dissipation 10 | . . . . . 10 . . . . . . Energy Generation 1 | . . . . . . 1 . . . . . Inventory Capacity 5 | 1 . . 1 . . 1 2 . . . . Sensor Range 3 | . . . . 3 . . . . . . . Ranged Accuracy 3 | . . . . . . . . . 3 . . KI Resistance % 3 | . . . . . . . . 2 . . 1 TH Resistance % 3 | . . . . . . . . 2 . . 1 EX Resistance % 4 | . . . . . . . . 2 . 1 1 Protomatter Created 3490 | . 67 309 444 . 539 550 235 155 77 376 738 Integrity Restored 6878 | . 102 744 847 . 1286 1184 476 444 231 915 649 Core 5119 | . 102 744 707 . 930 819 322 225 231 702 337 Parts 1759 | . . . 140 . 356 365 154 219 . 213 312 Protomatter Decayed 2830 | . 33 . 157 . 102 142 58 . 2106 67 165 Game ------ Seed UltimateArmageddonThrusters Manual? 0 Play Time 01:24:02 Cumulative 106.3 hours Start 2019.12.27 @ 10:57:48 End 2019.12.27 @ 12:23:28 Sessions 1 Manual Loads 0 Difficulty Rogue Special Mode Winter2019/RPGLIKE Game No. 151 Rogue 108 Adventurer 3 Explorer 40 Win Type - Total 2 Types 1/1/0/0/0/0/0 Lore% 48 Gallery% 69 Achievement% 47 Wizard Run 0 Options --------- ASCII 0 Keyboard 0 Movement Mouse Keybinds 0 Fullscreen 2 Font 18/SmallcapsGlow Map View 76x50 Tactical HUD 1 Map Filters NONE Filters NONE Steam 1 RUN: 367b6899-38fd-4b5a-aefd-e0e186538094